bitfinex-derivatives/quotes_ETHF0:USTF0_20260121
["timestamp","ask_amount","ask_price","bid_price","bid_amount"]
[1768973448309,0.16749,2988.3,2986.9,1.20372021]
[1768973448510,1.07901594,2988.9,2986.6,0.16758]
[1768973448511,0.16746,2988.9,2987.6,1.07901594]
[1768973448817,1.2960004,2988.6,2986.9,1.591]
[1768973449115,1.4634804,2988.6,2987.1,1.07901594]
[1768973449313,0.00365414,2988.6,2987.5,1.07901594]
[1768973449617,0.00365414,2988.6,2987.6,2.518]
[1768973450314,1.2960004,2989.2,2988.3,1.07901594]
[1768973450509,1.2960004,2989.6,2987.9,1.07901594]
[1768973450705,1.2960004,2989.1,2987.5,1.07901594]
[1768973451011,1.4634604,2988.8,2987.6,1.384]
[1768973451403,1.46743747,2988.8,2987.6,1.384]
[1768973454019,1.46743747,2988.8,2987.2,1.20372021]
[1768973454314,1.46743747,2988.8,2987.5,2.637]
[1768973460615,1.46743747,2988.8,2987.3,2.634]
[1768973461916,1.46743747,2988.8,2986.5,2.39334046]
[1768973461917,1.2960004,2988.4,2986.7,2.45031615]
[1768973462117,0.1675,2988.2,2986.8,5.984]
[1768973462321,1.2960004,2988.1,2986.4,0.00259246]
[1768973462523,1.4635204,2987.8,2986.5,3.351]
[1768973463119,0.16752,2987.8,2986.9,1.07901594]
[1768973465824,0.16752,2987.8,2986.6,1.07901594]
[1768973466119,0.16752,2987.8,2986.6,2.631]
[1768973466526,1.4635204,2987.8,2986.6,2.631]
[1768973468032,1.4635204,2987.8,2986.4,0.00259246]
[1768973468332,1.4635204,2987.8,2986.5,2.63]
[1768973470435,0.16752,2987.8,2986.5,2.63]
[1768973472337,0.16752,2987.8,2986.5,5.02334046]
[1768973474244,0.16752,2987.8,2986.6,2.39334046]
[1768973476041,0.16752,2987.8,2986.6,3.7704049]
[1768973476738,0.16752,2987.7,2986.6,2.39334046]
[1768973476949,0.16752,2987.7,2986.7,2.628]
[1768973477627,0.16752,2987.7,2986.6,2.39334046]
[1768973477825,1.61863207,2987.7,2986.6,2.39334046]
[1768973479238,1.61865207,2987.5,2986.5,2.39334046]
[1768973479735,1.61865207,2987.5,2986.4,2.39593292]
[1768973483239,1.61865207,2987.5,2986.4,0.00259246]
[1768973484037,0.16756,2987.1,2986.4,0.00259246]
[1768973485440,1.61868207,2986.9,2985.9,2.39334046]
[1768973485645,0.16757,2986.9,2985.8,2.39334046]
[1768973485840,1.45111207,2987.3,2985.6,2.627]
[1768973485841,0.16754,2987.5,2986.1,1.07901594]
[1768973486043,0.16754,2987.5,2986.1,4.84942084]
[1768973486337,0.16754,2987.5,2986.3,1.37706444]
[1768973486543,0.16754,2987.5,2986.4,1.37706444]
[1768973486744,0.16754,2987.5,2986.5,2.627]
[1768973487140,0.16754,2987.5,2986.4,3.7704049]
[1768973487342,0.16754,2987.5,2986.5,2.627]
[1768973488444,0.16754,2987.5,2986.5,5.02034046]
[1768973488644,0.16754,2987.5,2986.5,2.627]
[1768973489347,0.16754,2987.5,2986.5,5.02034046]
[1768973489644,0.16754,2987.5,2986.5,6.3974049]
[1768973489844,0.1675,2988.1,2986.7,3.7704049]
[1768973490048,0.16751,2988.0,2986.8,2.39334046]
[1768973491545,0.16751,2988.0,2986.9,2.39334046]
[1768973494045,0.16751,2987.9,2986.9,2.39334046]
[1768973494242,0.16752,2987.8,2986.9,2.39334046]
[1768973494444,1.45111207,2988.0,2986.7,2.628]
[1768973495045,1.45111207,2988.0,2986.6,5.02134046]
[1768973495643,0.16753,2987.7,2986.6,6.3984049]
[1768973495848,0.16753,2987.7,2986.7,3.7704049]
[1768973496043,0.16753,2987.7,2986.8,1.37706444]
[1768973496850,0.16749,2988.3,2986.8,1.37706444]
[1768973497447,0.16749,2988.3,2986.9,1.37706444]
[1768973498041,0.16749,2988.3,2987.0,1.37706444]
[1768973498250,0.00397707,2988.8,2987.3,3.7704049]
[1768973498442,0.00397707,2988.8,2987.5,1.37706444]
[1768973498950,1.08075478,2988.8,2987.5,2.45384215]
[1768973500045,1.24822478,2988.8,2987.5,2.45384215]
[1768973502155,1.24822478,2988.8,2987.7,1.07677771]
[1768973503356,0.17144707,2988.8,2987.7,1.07677771]
[1768973503753,1.24822478,2988.8,2987.5,2.45384215]
[1768973504146,1.07677771,2988.6,2987.5,2.45384215]
[1768973504351,1.07677771,2988.6,2987.5,1.07677771]
[1768973505358,0.16747,2988.7,2987.5,1.07677771]
[1768973505955,0.16747,2988.7,2987.5,3.47011817]
[1768973506457,0.16747,2988.7,2987.6,2.626]
[1768973506754,0.16747,2988.7,2987.5,3.47011817]
[1768973506947,0.16747,2988.7,2987.6,2.626]
[1768973508154,0.16747,2988.7,2987.7,1.07677771]
[1768973513566,0.16747,2988.7,2987.8,2.628]
[1768973514763,1.08075478,2988.8,2987.8,2.628]
[1768973515066,1.07677771,2988.6,2987.5,3.47011817]
[1768973515259,1.07677771,2988.6,2987.6,2.628]
[1768973515566,0.16748,2988.5,2987.6,2.628]
[1768973516364,0.16748,2988.5,2987.6,5.02134046]
[1768973517261,0.16748,2988.4,2987.6,5.02134046]
[1768973520964,0.16748,2988.4,2987.7,2.39334046]
[1768973522870,0.16748,2988.4,2987.8,2.632]
[1768973524766,0.16751,2988.0,2987.4,2.633]
[1768973525664,1.07677771,2988.3,2987.4,2.633]
[1768973525968,0.16747,2988.6,2987.5,1.07677771]
[1768973526170,0.16748,2988.4,2987.4,4.14478183]
[1768973526872,0.16748,2988.4,2987.3,1.07677771]
[1768973526873,0.16748,2988.4,2987.5,2.633]
[1768973529571,0.16748,2988.4,2987.5,5.22155954]
[1768973530672,0.00397707,2988.8,2987.9,2.58855954]
[1768973531067,0.00397707,2988.8,2987.9,1.51178183]
[1768973531569,0.00397707,2988.8,2987.9,2.58855954]
[1768973531775,0.00397707,2988.8,2988.1,1.07677771]
[1768973531977,0.00397707,2988.8,2988.2,2.632]
[1768973532275,0.00397707,2988.8,2988.2,2.63563479]
[1768973532670,0.16743,2989.4,2988.7,1.07677771]
[1768973532869,0.16743,2989.4,2988.4,1.51178183]
[1768973533078,1.24420771,2989.4,2988.4,1.51178183]
[1768973533465,1.24420771,2989.4,2988.5,2.632]
[1768973533669,1.24785908,2989.4,2988.5,2.632]
[1768973534277,0.17108137,2989.4,2988.5,2.632]
[1768973534865,0.17108137,2989.4,2988.5,5.22055954]
[1768973535073,0.17108137,2989.4,2988.6,1.51178183]
[1768973536076,1.07677771,2989.8,2988.6,1.51178183]
[1768973536371,1.61707115,2990.3,2988.6,1.51178183]
[1768973536574,0.26613961,2991.0,2989.5,2.76028729]
[1768973536772,0.16736,2990.6,2989.7,1.68350958]
[1768973537176,0.1703218,2990.6,2989.7,1.68350958]
[1768973537374,0.1703218,2990.6,2989.8,2.63]
[1768973537570,0.16733,2991.2,2990.0,1.68350958]
[1768973537880,3.02052875,2993.1,2990.0,1.68350958]
[1768973537881,0.16721,2993.3,2991.2,1.68350958]
[1768973538074,0.16722,2993.2,2992.3,1.07677771]
[1768973538376,0.16722,2993.2,2992.0,1.651]
[1768973538573,1.07677771,2992.7,2991.4,1.68350958]
[1768973538776,1.07677771,2991.8,2991.5,0.44778429]
[1768973538978,0.00396673,2993.2,2991.5,0.44778429]
[1768973538979,1.62877131,2993.1,2991.5,1.07677771]
[1768973539174,0.00396673,2993.2,2991.8,1.68350958]
[1768973539477,1.07677771,2993.2,2991.9,2.76028729]
[1768973539879,1.24399771,2993.2,2991.9,2.76028729]
[1768973540080,0.16722,2993.1,2991.9,2.76028729]
[1768973540278,1.07677771,2992.7,2991.4,2.76028729]
[1768973540481,1.07677771,2992.7,2991.9,0.00375167]
[1768973540670,0.16725,2992.6,2991.9,0.00375167]
[1768973540871,0.16725,2992.6,2991.2,2.628]
[1768973541076,0.16725,2992.6,2991.2,4.31150958]
[1768973541578,0.16726,2992.4,2991.2,1.68350958]
[1768973541774,0.16726,2992.4,2991.2,3.11370621]
[1768973541970,0.16726,2992.4,2991.2,4.31370621]
[1768973542375,0.16727,2992.3,2991.2,4.31370621]
[1768973542580,1.62877131,2992.7,2991.2,0.00319663]
[1768973542975,0.16731,2991.6,2990.2,1.68350958]
[1768973543174,0.16731,2991.6,2990.3,2.626]
[1768973543372,1.62877131,2992.6,2990.5,1.68350958]
[1768973543578,1.5,2992.5,2990.5,1.68350958]
[1768973543882,3.12877131,2992.5,2990.5,1.68350958]
[1768973544085,3.12877131,2992.5,2990.5,1.6861106]
[1768973544683,0.16729,2991.9,2990.5,1.6861106]
[1768973544879,0.16726,2992.5,2990.7,1.56680135]
[1768973547985,0.00254367,2993.1,2990.7,1.56680135]
[1768973548972,0.16726,2992.5,2990.7,1.56680135]
[1768973549380,0.16726,2992.5,2991.2,1.43584058]
[1768973549582,0.00254367,2993.1,2991.2,1.43584058]
[1768973549982,0.16976367,2993.1,2991.2,1.43584058]
[1768973550183,0.99120051,2994.9,2991.7,1.10800285]
[1768973550184,1.62877131,2994.4,2991.7,1.10800285]
[1768973550378,0.1672,2993.5,2992.1,1.61108158]
[1768973550577,0.1672,2993.5,2992.1,2.73019027]
[1768973550783,0.1672,2993.5,2992.2,4.45]
[1768973551084,0.1672,2993.5,2992.3,0.41640474]
[1768973551278,0.16721,2993.3,2992.2,5.969]
[1768973551784,0.16721,2993.3,2992.0,3.347]
[1768973551984,0.16722,2993.2,2992.1,0.41625981]
[1768973552288,0.16722,2993.2,2992.2,0.41625981]
[1768973552581,0.16722,2993.2,2991.9,2.621]
[1768973552887,0.16723,2992.9,2991.8,5.967]
[1768973553184,0.16723,2992.9,2991.9,0.41627685]
[1768973553385,0.16723,2992.9,2992.0,0.41622648]
[1768973553683,0.16723,2992.9,2991.8,5.967]
[1768973553879,0.16723,2992.9,2991.9,0.41622926]
[1768973554081,0.16723,2992.9,2991.8,5.967]
[1768973554286,0.16723,2992.9,2991.9,6.38228685]
[1768973554589,0.16723,2992.9,2991.9,5.966]
[1768973554885,0.16723,2992.9,2991.8,3.346]
[1768973555078,1.79602131,2992.6,2991.2,5.966]
[1768973555285,1.79602131,2992.6,2991.3,0.41659021]
[1768973555484,1.79602131,2992.6,2991.4,0.41659021]
[1768973555687,1.79602131,2992.6,2991.5,0.41659021]
[1768973555888,1.79602131,2992.6,2991.6,0.41659021]
[1768973556091,0.16725,2992.6,2991.7,0.41655372]
[1768973556389,0.16725,2992.6,2991.2,5.966]
[1768973556584,0.16725,2992.6,2991.3,0.41677539]
[1768973556786,0.16725,2992.6,2991.2,5.966]
[1768973556787,0.16725,2992.6,2991.4,0.41677539]
[1768973556988,0.16725,2992.6,2991.5,0.41677539]
[1768973557188,0.16725,2992.6,2991.6,0.41677539]
[1768973557391,1.62877131,2993.1,2991.7,0.41677539]
[1768973557593,0.00386805,2993.5,2991.8,1.14446905]
[1768973557594,0.16722,2993.2,2991.8,1.14446905]
[1768973557891,0.16722,2993.2,2991.9,0.41677539]
[1768973558091,0.16722,2993.2,2992.0,0.41677539]
[1768973558388,0.16722,2993.2,2992.1,0.41677539]
[1768973558595,0.16722,2993.2,2992.2,0.41677539]
[1768973558794,0.16722,2993.2,2992.3,0.41677539]
[1768973559091,0.16722,2993.2,2992.4,0.417507]
[1768973559288,0.16722,2993.2,2992.1,5.615]
[1768973559488,0.16722,2993.2,2992.2,0.41750814]
[1768973559688,0.16722,2993.2,2992.3,0.41750814]
[1768973559895,0.16722,2993.2,2992.4,0.41750814]
[1768973560197,0.16722,2993.2,2992.5,0.41792157]
[1768973560382,0.16722,2993.2,2992.1,5.615]
[1768973560584,0.16722,2993.2,2992.2,0.41792413]
[1768973560785,0.16722,2993.2,2992.3,0.41792413]
[1768973561087,0.16722,2993.1,2992.4,0.41792413]
[1768973561292,1.62877131,2993.4,2992.5,0.41792413]
[1768973561494,1.79601131,2992.9,2992.6,4.13e-06]
[1768973561797,0.16724,2992.8,2991.8,5.963]
[1768973562393,0.16724,2992.8,2991.8,5.962]
[1768973562595,0.16724,2992.8,2991.8,0.0033519]
[1768973562790,0.16724,2992.8,2991.8,2.6193519]
[1768973562994,0.16724,2992.8,2991.8,0.0033519]
[1768973563392,0.16724,2992.8,2991.8,2.6193519]
[1768973563791,1.62877131,2992.6,2991.8,0.0033519]
[1768973564599,0.16726,2992.5,2991.8,0.0033519]
[1768973565894,0.16726,2992.5,2990.8,0.62474972]
[1768973565895,1.6842692,2992.5,2990.3,2.38934605]
[1768973566198,1.6842692,2991.9,2990.1,2.38934605]
[1768973566400,0.1673,2991.7,2990.2,5.96]
[1768973567092,1.8515692,2991.7,2990.2,0.00419355]
[1768973567291,1.6842692,2991.5,2990.2,3.34919355]
[1768973567500,1.6842692,2991.3,2990.2,3.34919355]
[1768973567698,1.85479108,2991.3,2990.2,3.34919355]
[1768973568193,0.00320188,2991.3,2990.2,3.34919355]
[1768973568387,0.16728,2992.0,2990.2,3.34919355]
[1768973568388,0.16728,2992.0,2990.2,5.7385396]
[1768973568598,0.16728,2992.0,2990.4,2.38934605]
[1768973568793,1.6842692,2992.2,2990.4,2.38934605]
[1768973568993,1.6842692,2992.2,2990.5,2.38934605]
[1768973569300,0.00291141,2992.2,2990.5,2.38934605]
[1768973569495,0.00291141,2992.2,2990.6,2.38934605]
[1768973570102,1.68718061,2992.2,2990.6,2.38934605]
[1768973570295,1.68718061,2992.2,2990.7,5.959]
[1768973573306,1.68718061,2992.2,2990.7,8.34834605]
[1768973574900,1.68718061,2992.2,2990.8,5.959]
[1768973575096,1.85445061,2992.2,2990.7,2.38934605]
[1768973575297,1.8515492,2992.0,2990.8,2.613]
[1768973575609,1.6842692,2991.8,2990.5,2.38934605]
[1768973575809,1.6842692,2991.8,2990.6,2.613]
[1768973576900,1.6842692,2991.8,2990.4,2.38934605]
[1768973577101,1.6842692,2991.8,2990.5,2.612]
[1768973577400,1.6842692,2991.8,2990.4,2.38934605]
[1768973577700,1.6842692,2991.8,2990.6,2.612]
[1768973578601,0.16729,2991.9,2990.6,2.612]
[1768973580201,0.00291141,2992.2,2990.6,2.612]
[1768973580406,0.00291141,2992.2,2990.7,2.38934605]
[1768973580806,1.6842692,2992.8,2991.0,3.355]
[1768973581105,1.6842692,2992.8,2990.9,0.76093069]
[1768973581106,0.16722,2993.2,2991.6,1.75462459]
[1768973581295,0.16722,2993.2,2991.7,10.10097064]
[1768973581500,0.16722,2993.2,2991.8,2.38934605]
[1768973582006,0.16722,2993.2,2991.7,2.38934605]
[1768973582007,0.16957654,2993.2,2991.7,2.38934605]
[1768973582208,0.00235654,2993.2,2991.6,2.38934605]
[1768973582408,0.16724,2992.8,2991.8,2.611]
[1768973583003,1.68662574,2993.2,2991.8,2.611]
[1768973583203,0.00235654,2993.2,2991.8,4.36562459]
[1768973583410,0.00235654,2993.2,2991.9,1.75462459]
[1768973584711,0.00235654,2993.2,2991.6,2.38934605]
[1768973584712,0.00235654,2993.2,2992.0,5.956]
[1768973586110,0.00235654,2993.2,2992.1,2.609]
[1768973587811,0.00235654,2993.2,2992.2,2.608]
[1768973588408,0.00235654,2993.2,2992.1,2.608]
[1768973590708,0.00235654,2993.2,2992.2,2.607]
[1768973590910,0.00235654,2993.2,2992.2,5.952]
[1768973591608,0.16719,2993.8,2992.2,7.70662459]
[1768973592010,0.1672,2993.6,2992.2,7.70662459]
[1768973592203,1.5,2994.4,2991.8,2.38934605]
[1768973592204,0.1672,2993.5,2991.8,2.38934605]
[1768973592402,0.1672,2993.4,2991.8,2.38934605]
[1768973592615,0.17133587,2993.4,2991.9,5.951]
[1768973593120,0.17133587,2993.4,2992.0,2.38934605]
[1768973594416,0.17133587,2993.4,2992.1,2.606]
[1768973595214,0.16721,2993.3,2992.1,2.606]
[1768973595416,0.16721,2993.3,2992.0,5.73434605]
[1768973595417,0.16721,2993.3,2992.2,2.606]
[1768973595816,1.93325718,2993.4,2991.9,2.38934605]
[1768973596019,0.16723,2992.9,2992.0,2.606]
[1768973596814,0.16725,2992.6,2991.7,2.38934605]
[1768973597021,0.16725,2992.6,2991.7,2.605]
[1768973597514,0.16726,2992.4,2991.7,2.605]
[1768973597820,0.16726,2992.4,2991.3,3.345]
[1768973603018,0.16727,2992.3,2991.3,3.345]
[1768973605022,0.16727,2992.2,2991.3,3.345]
[1768973605422,0.16727,2992.2,2991.3,5.73434605]
[1768973609323,0.16727,2992.2,2991.4,2.38934605]
[1768973611821,0.16727,2992.2,2991.3,5.73434605]
[1768973615923,0.16727,2992.2,2991.3,2.38934605]
[1768973617632,0.16729,2992.0,2991.2,2.38934605]
[1768973617831,0.16729,2992.0,2991.0,2.38934605]
[1768973618024,0.16729,2991.9,2991.0,2.612]
[1768973618326,1.92912131,2992.3,2991.0,2.612]
[1768973618728,0.1673,2991.7,2990.8,2.38934605]
[1768973619032,0.1673,2991.7,2990.9,2.612]
[1768973619232,1.92912131,2991.9,2990.9,2.612]
[1768973619435,1.92912131,2991.9,2990.7,2.612]
[1768973620526,0.16731,2991.5,2990.7,2.612]
[1768973626938,0.16732,2991.4,2990.7,2.612]
[1768973629740,2.04667081,2992.3,2990.7,4.84930201]
[1768973630040,0.1673,2991.8,2990.7,4.84930201]
[1768973630543,2.04667081,2992.3,2990.7,4.84930201]
[1768973631232,0.16731,2991.6,2990.7,4.84930201]
[1768973631431,0.16731,2991.5,2990.7,4.84930201]
[1768973631831,2.04667081,2992.3,2990.7,4.84930201]
[1768973632034,0.1673,2991.7,2990.7,7.23864806]
[1768973637944,2.04667081,2992.3,2990.9,2.38934605]
[1768973638948,1.07432595,2992.2,2990.9,3.463672]
[1768973639644,0.1673,2991.7,2990.9,3.463672]
[1768973640346,0.1673,2991.7,2990.9,2.38934605]
[1768973640649,0.1673,2991.7,2990.8,2.38934605]
[1768973640650,0.16731,2991.5,2990.8,2.38934605]
[1768973640850,0.16731,2991.5,2990.5,3.01884841]
[1768973640851,0.16731,2991.5,2990.7,2.38934605]
[1768973641053,0.16731,2991.5,2990.6,5.00734605]
[1768973641347,0.16731,2991.5,2990.7,2.38934605]
[1768973641650,1.24164595,2991.4,2990.6,5.00734605]
[1768973642851,0.16732,2991.4,2990.6,5.00734605]
[1768973643347,0.16732,2991.4,2990.7,2.38934605]
[1768973643548,0.16732,2991.4,2990.6,5.00734605]
[1768973643956,0.16732,2991.4,2990.6,2.618]
[1768973645145,0.16732,2991.3,2990.6,2.618]
[1768973645340,0.17053719,2991.3,2990.6,2.618]
[1768973645853,0.16733,2991.1,2990.6,2.618]
[1768973646152,0.16735,2990.9,2990.2,2.62519355]
[1768973648251,0.16735,2990.9,2990.2,0.00419355]
[1768973651958,0.16735,2990.8,2990.2,0.00419355]
[1768973669170,2.42342294,2990.8,2990.2,0.00419355]
[1768973669760,0.16735,2990.8,2990.2,0.00419355]
[1768973669963,0.00321719,2991.3,2990.5,1.07518063]
[1768973670772,0.00321719,2991.3,2990.7,1.07518063]
[1768973672669,1.07518063,2992.5,2990.2,0.00419355]
[1768973672670,0.1673,2991.8,2990.9,1.07518063]
[1768973672870,0.1673,2991.8,2991.1,1.07518063]
[1768973673071,0.1673,2991.8,2990.9,1.07518063]
[1768973673873,0.16981588,2991.8,2990.9,1.07518063]
[1768973674565,0.16981588,2991.8,2991.3,1.07518063]
[1768973674566,0.00251588,2991.8,2991.3,1.07518063]
[1768973674772,2.42333294,2992.4,2991.3,1.07518063]
[1768973675574,0.16727,2992.3,2991.3,1.07518063]
[1768973675769,0.16986971,2992.3,2991.3,1.07518063]
[1768973676273,0.16986971,2992.3,2991.1,1.07518063]
[1768973677562,0.16727,2992.2,2991.1,1.07518063]
[1768973677770,1.07518063,2991.9,2990.9,2.38934605]
[1768973677969,1.07518063,2991.5,2990.7,2.38934605]
[1768973678176,1.07518063,2991.5,2990.6,2.615]
[1768973678377,3.33125357,2991.7,2990.6,2.615]
[1768973678875,2.25607294,2991.7,2990.6,2.615]
[1768973679177,0.16731,2991.5,2990.6,2.615]
[1768973679869,0.16731,2991.5,2990.6,5.00434605]
[1768973684272,0.16731,2991.5,2990.6,2.38934605]
[1768973687289,0.16731,2991.5,2990.5,2.38934605]
[1768973687584,0.16732,2991.4,2990.4,2.38934605]
[1768973688592,2.68851938,2991.4,2990.4,2.38934605]
[1768973689789,0.16732,2991.3,2990.3,5.00834605]
[1768973690482,0.16732,2991.3,2990.4,2.38934605]
[1768973690684,0.16733,2991.2,2990.3,2.619]
[1768973697789,5.20959971,2992.3,2990.3,2.619]
[1768973697790,2.52119938,2991.1,2990.3,2.619]
[1768973698089,0.16735,2990.9,2990.3,2.619]
[1768973698995,0.16735,2990.8,2990.3,2.619]
[1768973699397,0.16735,2990.8,2990.2,0.00419355]
[1768973700797,0.16735,2990.8,2990.2,2.3935396]
[1768973703699,2.52119938,2991.6,2990.4,2.38934605]
[1768973704602,0.16732,2991.4,2990.4,2.38934605]
[1768973705401,0.16732,2991.4,2990.5,2.38934605]
[1768973706803,2.52119938,2991.6,2990.2,3.02304196]
[1768973706804,0.16731,2991.6,2990.3,2.38934605]
[1768973707006,2.68850938,2991.6,2990.2,4.89260103]
[1768973707500,2.68850938,2991.6,2990.3,2.38934605]
[1768973707901,0.16731,2991.5,2990.3,2.38934605]
[1768973708101,0.16732,2991.4,2990.2,2.3935396]
[1768973709103,2.52119938,2991.3,2990.2,2.3935396]
[1768973709304,2.52119938,2991.3,2990.2,0.00419355]
[1768973710600,0.16734,2991.0,2990.2,0.00419355]
[1768973712409,2.52119938,2991.0,2989.7,2.38934605]
[1768973712607,2.52119938,2990.8,2989.3,1.07464428]
[1768973713405,2.52119938,2990.8,2989.1,2.49906143]
[1768973713605,0.16736,2990.6,2989.1,2.50261361]
[1768973717807,0.16739,2990.2,2989.1,0.00355218]
[1768973718008,0.17069803,2990.2,2989.1,0.00355218]
[1768973722118,0.17069803,2990.2,2989.1,2.51989368]
[1768973722119,0.00330803,2990.2,2989.1,2.51989368]
[1768973728022,0.00330803,2990.2,2989.2,2.39452757]
[1768973733532,0.00330803,2990.2,2989.3,2.39452757]
[1768973734230,0.00330803,2990.2,2989.4,2.39452757]
[1768973737330,0.00330803,2990.2,2989.5,2.39452757]
[1768973740237,0.00330803,2990.2,2989.6,2.39452757]
[1768973740540,0.00330803,2990.2,2989.5,2.39452757]
[1768973741338,0.00330803,2990.2,2989.6,2.39452757]
[1768973741937,0.00330803,2990.2,2989.7,3.47008243]
[1768973742230,0.00330803,2990.2,2989.7,2.39452757]
[1768973743139,0.16736,2990.7,2989.7,2.39452757]
[1768973743632,0.16736,2990.6,2989.7,2.39452757]
[1768973744139,0.17008555,2990.6,2989.7,2.39452757]
[1768973745238,0.17008555,2990.6,2990.0,1.07555486]
[1768973745443,1.07555486,2991.2,2990.0,3.47008243]
[1768973745740,1.07555486,2991.2,2990.0,2.39452757]
[1768973746526,0.16734,2991.0,2990.0,2.39452757]
[1768973748633,1.24289486,2991.0,2990.0,2.39452757]
[1768973749937,1.07555486,2990.1,2989.0,3.01884841]
[1768973750132,1.07555486,2990.3,2989.1,1.07910704]
[1768973753346,1.24292486,2990.5,2989.3,1.07555486]
[1768973754741,1.07555486,2990.3,2989.1,1.07910704]
[1768973756749,2.74884248,2990.5,2989.1,1.07910704]
[1768973756750,3.82439734,2990.5,2989.3,1.07555486]
[1768973758346,3.82439734,2990.5,2989.5,1.07555486]
[1768973758347,0.16737,2990.5,2989.5,1.07555486]
[1768973758551,0.16737,2990.5,2989.7,1.07555486]
[1768973760045,0.16737,2990.5,2989.8,2.39874993]
[1768973760246,2.58147248,2990.9,2989.8,2.39874993]
[1768973761848,1.07555486,2990.6,2989.8,2.39874993]
[1768973762043,1.07555486,2990.0,2989.2,4.22638778]
[1768973762248,0.16738,2990.3,2989.1,1.07910704]
[1768973764062,1.07555486,2990.2,2989.1,1.07910704]
[1768973764462,0.16736,2990.7,2989.2,2.67830083]
[1768973764757,0.16736,2990.7,2989.9,1.07555486]
[1768973765154,1.07555486,2991.0,2989.9,1.07555486]
[1768973765346,2.58516034,2991.2,2989.9,1.07555486]
[1768973765347,3.6607152,2991.2,2989.9,1.07555486]
[1768973765552,3.8280452,2991.2,2989.9,1.07555486]
[1768973766263,2.75249034,2991.2,2989.9,1.07555486]
[1768973766461,1.07555486,2991.1,2989.9,1.07555486]
[1768973768061,3.8280452,2991.2,2989.9,1.07555486]
[1768973768262,2.58147248,2991.1,2989.9,1.07555486]
[1768973768861,0.17101786,2991.2,2990.3,1.07555486]
[1768973771963,0.00368786,2991.2,2990.3,1.07555486]
[1768973772264,0.00368786,2991.2,2990.1,1.07555486]
[1768973773462,0.00368786,2991.2,2990.3,1.07555486]
[1768973774262,0.00368786,2991.2,2990.5,1.07555486]
[1768973778467,0.00368786,2991.2,2990.3,1.07555486]
[1768973778853,0.00368786,2991.2,2990.1,5.69714924]
[1768973778854,3.65702734,2991.9,2990.7,1.07555486]
[1768973779969,3.66031062,2991.9,2990.7,1.07555486]
[1768973780565,1.07883814,2991.9,2990.7,1.07555486]
[1768973782968,1.24612814,2991.9,2990.7,1.07555486]
[1768973787772,3.74871551,2991.9,2990.7,1.07555486]
[1768973788169,1.07555486,2991.5,2990.3,1.07555486]
[1768973788374,3.57814223,2991.5,2990.3,1.07555486]
[1768973789773,2.50258737,2991.5,2990.5,1.07555486]
[1768973797884,2.50258737,2991.5,2990.7,1.07555486]
[1768973799075,0.00328328,2991.9,2991.0,1.07555486]
[1768973800380,0.00328328,2991.9,2991.2,1.07555486]
[1768973800678,0.86974177,2992.6,2991.4,1.07555486]
[1768973800679,4.447884,2992.6,2991.4,1.07555486]
[1768973800886,2.50258737,2992.5,2991.2,3.02235015]
[1768973801574,2.50656928,2992.5,2991.2,3.02235015]
[1768973802887,2.67382928,2992.5,2991.2,3.02235015]
[1768973803190,2.66984737,2992.4,2991.2,0.00350174]
[1768973803577,2.66984737,2992.4,2991.2,3.02235015]
[1768973804184,2.66984737,2992.4,2991.4,2.39227415]
[1768973805786,2.66984737,2992.4,2991.3,2.39227415]
[1768973805995,2.75108322,2992.2,2991.2,0.00350174]
[1768973806290,0.16727,2992.2,2991.2,2.39577589]
[1768973808390,2.75108322,2992.2,2991.2,2.39577589]
[1768973809388,0.16727,2992.2,2991.2,2.39577589]
[1768973809693,0.00398191,2992.5,2991.3,2.39227415]
[1768973810394,0.00398191,2992.5,2991.4,2.39227415]
[1768973812595,0.00398191,2992.5,2991.6,2.39227415]
[1768973812994,4.48022765,2993.6,2991.7,1.07405719]
[1768973812995,2.75102322,2993.4,2991.7,1.07405719]
[1768973813200,2.75102322,2993.4,2991.8,2.7386646]
[1768973813398,2.58381322,2993.4,2991.8,5.13093875]
[1768973813603,2.58381322,2993.4,2992.1,2.39227415]
[1768973813999,2.58653351,2993.4,2992.1,2.39227415]
[1768973814203,2.58653351,2993.4,2992.0,2.39227415]
[1768973814699,2.58653351,2993.4,2992.4,1.07405719]
[1768973814905,0.00272029,2993.4,2992.4,3.46633134]
[1768973815092,0.00272029,2993.4,2992.3,2.39227415]
[1768973816196,0.00272029,2993.4,2992.2,2.39227415]
[1768973817306,0.00272029,2993.4,2992.1,2.39227415]
[1768973818404,0.16716,2994.3,2992.5,3.81272179]
[1768973818597,0.16716,2994.3,2992.8,1.07405719]
[1768973818803,2.58381322,2994.0,2992.6,2.593]
[1768973819110,2.75098322,2994.0,2992.5,1.07405719]
[1768973819609,2.75351369,2994.0,2992.5,1.07405719]
[1768973820606,0.16718,2993.9,2992.4,2.593]
[1768973820903,2.75099322,2993.9,2992.4,2.593]
[1768973822203,2.75099322,2993.9,2992.5,1.07405719]
[1768973823410,2.75099322,2993.9,2992.4,5.3316646]
[1768973824110,0.16718,2993.9,2992.5,3.81272179]
[1768973825213,0.16718,2993.9,2992.5,2.7386646]
[1768973829013,2.75099322,2993.9,2992.4,2.593]
[1768973829408,2.58381322,2993.6,2992.4,2.59]
[1768973829615,2.58381322,2993.6,2992.3,2.59]
[1768973830009,2.75100322,2993.6,2992.3,2.59]
[1768973831218,2.58634369,2994.0,2992.3,2.59]
[1768973831416,2.58634369,2994.0,2992.3,5.3286646]
[1768973831720,2.58634369,2994.0,2992.5,1.07405719]
[1768973834621,2.58634369,2994.0,2992.4,2.39227415]
[1768973835118,2.75351369,2994.0,2992.5,2.587]
[1768973835518,2.80086235,2993.8,2992.3,2.39227415]
[1768973837223,0.00253047,2994.0,2992.6,1.07405719]
[1768973837726,0.00253047,2994.0,2992.6,3.46633134]
[1768973838120,0.00253047,2994.0,2992.7,2.39227415]
[1768973838520,0.00253047,2994.0,2992.8,2.39227415]
[1768973839324,0.00253047,2994.0,2993.0,2.39227415]
[1768973840328,0.20810967,2994.5,2993.3,2.39227415]
[1768973840921,2.84179202,2994.5,2993.4,2.39227415]
[1768973841127,2.63368235,2994.3,2993.1,2.39227415]
[1768973841436,2.63632385,2994.3,2993.1,0.00410146]
[1768973841626,2.80346385,2994.3,2993.1,0.00410146]
[1768973843534,0.20810967,2994.5,2993.6,1.07405719]
[1768973843726,0.1671,2994.9,2993.6,1.07405719]